fUSD/lending_fUSD_20251212
["ID","MTS","AMOUNT","RATE_DAILY","PERIOD"]
[398293769,1765500658247,-239.333568,0.00032877,31]
[398293770,1765500658271,-239.333568,0.00032877,31]
[398293771,1765500658280,-239.333568,0.00032877,31]
[398293772,1765500658289,-239.333568,0.00032877,31]
[398293773,1765500658299,-239.33357,0.00032877,31]
[398293774,1765500658308,-151.0,0.00032877,31]
[398293775,1765500658318,-151.0,0.00032877,31]
[398293776,1765500658329,-161.483556,0.00032877,31]
[398293777,1765500658338,-151.0,0.00032877,31]
[398293778,1765500658348,-151.0,0.00032877,31]
[398293779,1765500658357,-151.0,0.00032877,31]
[398293780,1765500658367,-151.0,0.00032877,31]
[398293781,1765500658380,-151.0,0.00032877,31]
[398293782,1765500658389,-163.635113,0.00032877,31]
[398293783,1765500658398,-151.0,0.00032877,31]
[398293784,1765500658407,-151.0,0.00032877,31]
[398293785,1765500658418,-151.0,0.00032877,31]
[398293786,1765500658427,-477.101555,0.00032877,31]
[398293787,1765500658437,-151.0,0.00032877,31]
[398293788,1765500658446,-477.101555,0.00032877,31]
[398293789,1765500658458,-151.0,0.00032877,31]
[398293790,1765500658467,-151.0,0.00032877,31]
[398293791,1765500658477,-477.101555,0.00032877,31]
[398293792,1765500658487,-151.0,0.00032877,31]
[398293793,1765500658496,-206.804997,0.00032877,31]
[398293794,1765500658506,-477.101555,0.00032877,31]
[398293795,1765500658515,-151.0,0.00032877,31]
[398293796,1765500658524,-477.101555,0.00032877,31]
[398293797,1765500658533,-477.101555,0.00032877,31]
[398293798,1765500658542,-477.101555,0.00032877,31]
[398293799,1765500658552,-477.101555,0.00032877,31]
[398293800,1765500658561,-477.101555,0.00032877,31]
[398293801,1765500658571,-477.101555,0.00032877,31]
[398293802,1765500658580,-477.101555,0.00032877,31]
[398293803,1765500658589,-477.101555,0.00032877,31]
[398293804,1765500658598,-477.101555,0.00032877,31]
[398293805,1765500658608,-477.101555,0.00032877,31]
[398293806,1765500658618,-477.101555,0.00032877,31]
[398293807,1765500658627,-477.101555,0.00032877,31]
[398293808,1765500658637,-477.101555,0.00032877,31]
[398293809,1765500658647,-477.101555,0.00032877,31]
[398293810,1765500658657,-477.101555,0.00032877,31]
[398293811,1765500658667,-477.101552,0.00032877,31]
[398293812,1765500658676,-151.0,0.00032877,31]
[398293813,1765500658686,-151.0,0.00032877,31]
[398293814,1765500658695,-151.0,0.00032877,31]
[398293815,1765500658705,-151.0,0.00032877,31]
[398293816,1765500658714,-151.0,0.00032877,31]
[398293817,1765500658724,-151.0,0.00032877,31]
[398293818,1765500658733,-151.0,0.00032877,31]
[398293819,1765500658742,-151.0,0.00032877,31]
[398293820,1765500658751,-151.0,0.00032877,31]
[398293821,1765500658760,-151.0,0.00032877,31]
[398293822,1765500658769,-197.609308,0.00032877,31]
[398293823,1765500658778,-151.0,0.00032877,31]
[398293824,1765500658787,-151.0,0.00032877,31]
[398293825,1765500658796,-151.0,0.00032877,31]
[398293826,1765500658805,-151.0,0.00032877,31]
[398293827,1765500658815,-151.0,0.00032877,31]
[398293828,1765500658826,-217.729922,0.00032877,31]
[398293829,1765500658835,-907.836857,0.00032877,31]
[398293830,1765500658845,-1832.63145,0.00032877,31]
[398293831,1765500658854,-907.836857,0.00032877,31]
[398293832,1765500658864,-1832.63145,0.00032877,31]
[398293833,1765500658873,-907.836857,0.00032877,31]
[398293834,1765500658882,-1832.63145,0.00032877,31]
[398293835,1765500658891,-907.836857,0.00032877,31]
[398293836,1765500658900,-1832.63145,0.00032877,31]
[398293837,1765500658910,-907.836857,0.00032877,31]
[398293838,1765500658919,-1832.63145,0.00032877,31]
[398293839,1765500658928,-907.836857,0.00032877,31]
[398293840,1765500658938,-1832.63145,0.00032877,31]
[398293841,1765500658947,-907.836857,0.00032877,31]
[398293842,1765500658957,-1832.63145,0.00032877,31]
[398293843,1765500658967,-907.836857,0.00032877,31]
[398293844,1765500658976,-1832.63145,0.00032877,31]
[398293845,1765500658986,-907.836857,0.00032877,31]
[398293846,1765500658995,-1832.63145,0.00032877,31]
[398293847,1765500659004,-907.836857,0.00032877,31]
[398293848,1765500659014,-1832.63145,0.00032877,31]
[398293849,1765500659023,-907.836857,0.00032877,31]
[398293850,1765500659032,-1832.63145,0.00032877,31]
[398293851,1765500659042,-907.836857,0.00032877,31]
[398293852,1765500659052,-907.836857,0.00032877,31]
[398293853,1765500659061,-1832.63145,0.00032877,31]
[398293854,1765500659070,-907.836857,0.00032877,31]
[398293855,1765500659080,-1832.63145,0.00032877,31]
[398293856,1765500659089,-907.836857,0.00032877,31]
[398293857,1765500659098,-1832.63145,0.00032877,31]
[398293858,1765500659108,-907.836857,0.00032877,31]
[398293859,1765500659117,-1832.63145,0.00032877,31]
[398293860,1765500659127,-907.836857,0.00032877,31]
[398293861,1765500659136,-1832.63145,0.00032877,31]
[398293862,1765500659145,-907.836857,0.00032877,31]
[398293863,1765500659155,-151.0,0.00032877,31]
[398293864,1765500659164,-1832.63145,0.00032877,31]
[398293865,1765500659173,-907.836857,0.00032877,31]
[398293866,1765500659183,-1832.63145,0.00032877,31]
[398293867,1765500659192,-907.836849,0.00032877,31]
[398293868,1765500659202,-1832.63145,0.00032877,31]
[398293869,1765500659211,-1832.631453,0.00032877,31]
[398293870,1765500659221,-151.0,0.00032877,31]
[398293871,1765500659231,-151.0,0.00032877,31]
[398293872,1765500659241,-151.0,0.00032877,31]
[398293873,1765500659251,-151.0,0.00032877,31]
[398293874,1765500659261,-151.0,0.00032877,31]
[398293875,1765500659270,-1088.461098,0.00032877,31]
[398293876,1765500659279,-1088.461098,0.00032877,31]
[398293877,1765500659289,-1088.461098,0.00032877,31]
[398293878,1765500659298,-310.110686,0.00032877,31]
[398293879,1765500659308,-1088.461098,0.00032877,31]
[398293880,1765500659317,-310.110686,0.00032877,31]
[398293881,1765500659326,-1088.461098,0.00032877,31]
[398293882,1765500659336,-310.110686,0.00032877,31]
[398293883,1765500659345,-1088.461098,0.00032877,31]
[398293884,1765500659355,-310.110686,0.00032877,31]
[398293885,1765500659364,-1088.461098,0.00032877,31]
[398293886,1765500659378,-310.110686,0.00032877,31]
[398293887,1765500659387,-1088.461098,0.00032877,31]
[398293888,1765500659397,-310.110686,0.00032877,31]
[398293889,1765500659407,-1088.461098,0.00032877,31]
[398293890,1765500659417,-310.110686,0.00032877,31]
[398293891,1765500659427,-1088.461098,0.00032877,31]
[398293892,1765500659436,-310.110686,0.00032877,31]
[398293893,1765500659446,-1088.461098,0.00032877,31]
[398293894,1765500659456,-1088.461098,0.00032877,31]
[398293895,1765500659466,-310.110686,0.00032877,31]
[398293896,1765500659475,-1088.461098,0.00032877,31]
[398293897,1765500659485,-310.110686,0.00032877,31]
[398293898,1765500659495,-151.0,0.00032877,31]
[398293899,1765500659504,-310.110686,0.00032877,31]
[398293900,1765500659513,-1088.461098,0.00032877,31]
[398293901,1765500659522,-151.0,0.00032877,31]
[398293902,1765500659532,-1370.965509,0.00032877,31]
[398293903,1765500659541,-310.110686,0.00032877,31]
[398293904,1765500659550,-1088.461098,0.00032877,31]
[398293905,1765500659560,-151.0,0.00032877,31]
[398293906,1765500659569,-1370.965509,0.00032877,31]
[398293907,1765500659578,-310.110686,0.00032877,31]
[398293908,1765500659588,-1088.461098,0.00032877,31]
[398293909,1765500659598,-1370.965509,0.00032877,31]
[398293910,1765500659608,-310.110686,0.00032877,31]
[398293911,1765500659617,-1088.461098,0.00032877,31]
[398293912,1765500659626,-151.0,0.00032877,31]
[398293913,1765500659636,-1370.965509,0.00032877,31]
[398293914,1765500659645,-310.110686,0.00032877,31]
[398293915,1765500659660,-1088.461098,0.00032877,31]
[398293916,1765500659675,-151.0,0.00032877,31]
[398293917,1765500659685,-1370.965509,0.00032877,31]
[398293918,1765500659695,-310.110686,0.00032877,31]
[398293919,1765500659705,-151.0,0.00032877,31]
[398293920,1765500659715,-1370.965509,0.00032877,31]
[398293921,1765500659724,-310.110686,0.00032877,31]
[398293922,1765500659734,-1088.461098,0.00032877,31]
[398293923,1765500659744,-151.0,0.00032877,31]
[398293924,1765500659754,-1370.965509,0.00032877,31]
[398293925,1765500659765,-310.110686,0.00032877,31]
[398293926,1765500659775,-1088.461103,0.00032877,31]
[398293927,1765500659784,-151.0,0.00032877,31]
[398293928,1765500659794,-1370.965509,0.00032877,31]
[398293929,1765500659803,-310.110686,0.00032877,31]
[398293930,1765500659813,-688.481991,0.00032877,31]
[398293931,1765500659823,-151.0,0.00032877,31]
[398293932,1765500659833,-1370.965509,0.00032877,31]
[398293933,1765500659842,-310.1106778,0.00032877,31]
[398293934,1765500659852,-688.481991,0.00032877,31]
[398293935,1765500659861,-151.0,0.00032877,31]
[398293936,1765500659871,-1370.965509,0.00032877,31]
[398293937,1765500659880,-688.481991,0.00032877,31]
[398293938,1765500659890,-151.0,0.00032877,31]
[398293939,1765500659899,-1370.965509,0.00032877,31]
[398293940,1765500659910,-688.481991,0.00032877,31]
[398293941,1765500659919,-151.0,0.00032877,31]
[398293942,1765500659929,-1370.965509,0.00032877,31]
[398293943,1765500659939,-688.481991,0.00032877,31]
[398293944,1765500659949,-172.460887,0.00032877,31]
[398293945,1765500659958,-151.0,0.00032877,31]
[398293946,1765500659968,-1370.965509,0.00032877,31]
[398293947,1765500659978,-688.481991,0.00032877,31]
[398293948,1765500659987,-172.460887,0.00032877,31]
[398293949,1765500659996,-151.0,0.00032877,31]
[398293950,1765500660006,-1370.965509,0.00032877,31]
[398293951,1765500660016,-688.481991,0.00032877,31]
[398293952,1765500660026,-172.460887,0.00032877,31]
[398293953,1765500660035,-1370.965509,0.00032877,31]
[398293954,1765500660045,-688.481991,0.00032877,31]
[398293955,1765500660054,-172.460887,0.00032877,31]
[398293956,1765500660065,-151.0,0.00032877,31]
[398293957,1765500660075,-1370.965509,0.00032877,31]
[398293958,1765500660085,-688.481991,0.00032877,31]
[398293959,1765500660095,-172.460887,0.00032877,31]
[398293960,1765500660105,-1370.965509,0.00032877,31]
[398293961,1765500660115,-172.460887,0.00032877,31]
[398293962,1765500660124,-688.481991,0.00032877,31]
[398293963,1765500660133,-1370.965509,0.00032877,31]
[398293964,1765500660143,-262.054738,0.00032877,31]
[398293965,1765500660152,-688.481991,0.00032877,31]
[398293966,1765500660162,-172.460887,0.00032877,31]
[398293967,1765500660172,-1370.965509,0.00032877,31]
[398293968,1765500660182,-688.481991,0.00032877,31]
[398293969,1765500660191,-172.460887,0.00032877,31]
[398293970,1765500660201,-1370.965513,0.00032877,31]
[398293971,1765500660211,-688.481991,0.00032877,31]
[398293972,1765500660221,-172.460887,0.00032877,31]
[398293973,1765500660231,-151.0,0.00032877,31]
[398293974,1765500660241,-688.481991,0.00032877,31]
[398293975,1765500660251,-172.460887,0.00032877,31]
[398293976,1765500660260,-151.0,0.00032877,31]
[398293977,1765500660270,-688.481991,0.00032877,31]
[398293978,1765500660280,-172.460887,0.00032877,31]
[398293979,1765500660289,-151.0,0.00032877,31]
[398293980,1765500660298,-688.481991,0.00032877,31]
[398293981,1765500660308,-172.460887,0.00032877,31]
[398293982,1765500660317,-204.404379,0.00032877,31]
[398293983,1765500660327,-688.481991,0.00032877,31]
[398293984,1765500660336,-172.460887,0.00032877,31]
[398293985,1765500660346,-151.0,0.00032877,31]
[398293986,1765500660355,-688.481991,0.00032877,31]
[398293987,1765500660365,-172.460887,0.00032877,31]
[398293988,1765500660377,-688.481991,0.00032877,31]
[398293989,1765500660387,-172.460887,0.00032877,31]
[398293990,1765500660396,-688.48199,0.00032877,31]
[398293991,1765500660406,-172.460887,0.00032877,31]
[398293992,1765500660415,-172.460887,0.00032877,31]
[398293993,1765500660426,-172.460887,0.00032877,31]
[398293994,1765500660435,-172.460887,0.00032877,31]
[398293995,1765500660445,-172.460884,0.00032877,31]
[398293996,1765500660455,-299.595237,0.00032877,31]
[398293997,1765500660464,-151.0,0.00032877,31]
[398293998,1765500660474,-151.0,0.00032877,31]
[398293999,1765500660483,-151.0,0.00032877,31]
[398294000,1765500660492,-151.0,0.00032877,31]
[398294001,1765500660501,-151.0,0.00032877,31]
[398294002,1765500660511,-196.437615,0.00032877,31]
[398294003,1765500660520,-472.395228,0.00032877,31]
[398294004,1765500660531,-472.395228,0.00032877,31]
[398294005,1765500660541,-472.395228,0.00032877,31]
[398294006,1765500660550,-472.395228,0.00032877,31]
[398294007,1765500660559,-472.395228,0.00032877,31]
[398294008,1765500660569,-472.395228,0.00032877,31]
[398294009,1765500660579,-472.395228,0.00032877,31]
[398294010,1765500660588,-472.395228,0.00032877,31]
[398294011,1765500660597,-472.395228,0.00032877,31]
[398294012,1765500660606,-472.395228,0.00032877,31]
[398294013,1765500660615,-472.395228,0.00032877,31]
[398294014,1765500660624,-472.395228,0.00032877,31]
[398294015,1765500660634,-472.395228,0.00032877,31]
[398294016,1765500660643,-472.395228,0.00032877,31]
[398294017,1765500660652,-472.395228,0.00032877,31]
[398294018,1765500660662,-472.395228,0.00032877,31]
[398294019,1765500660672,-472.395228,0.00032877,31]
[398294020,1765500660682,-472.395228,0.00032877,31]
[398294021,1765500660691,-472.395228,0.00032877,31]
[398294022,1765500660700,-472.395237,0.00032877,31]
[398294023,1765500660709,-151.0,0.00032877,31]
[398294024,1765500660718,-151.0,0.00032877,31]
[398294025,1765500660727,-151.0,0.00032877,31]
[398294026,1765500660736,-151.0,0.00032877,31]
[398294027,1765500660745,-151.0,0.00032877,31]
[398294028,1765500660754,-160.594706,0.00032877,31]
[398294029,1765500660764,-151.0,0.00032877,31]
[398294030,1765500660773,-151.0,0.00032877,31]
[398294031,1765500660782,-151.0,0.00032877,31]
[398294032,1765500660791,-151.454709,0.00032877,31]
[398294033,1765500660801,-151.0,0.00032877,31]
[398294034,1765500660810,-151.0,0.00032877,31]
[398294035,1765500660820,-151.0,0.00032877,31]
[398294036,1765500660830,-151.0,0.00032877,31]
[398294037,1765500660839,-178.45003,0.00032877,31]
[398294038,1765500660849,-178.45003,0.00032877,31]
[398294039,1765500660858,-178.45003,0.00032877,31]
[398294040,1765500660867,-151.0,0.00032877,31]
[398294041,1765500660877,-151.0,0.00032877,31]
[398294042,1765500660887,-178.45003,0.00032877,31]
[398294043,1765500660896,-151.0,0.00032877,31]
[398294044,1765500660905,-178.45003,0.00032877,31]
[398294045,1765500660915,-151.0,0.00032877,31]
[398294046,1765500660925,-178.45003,0.00032877,31]
[398294047,1765500660934,-151.0,0.00032877,31]
[398294048,1765500660944,-151.0,0.00032877,31]
[398294049,1765500660953,-178.45003,0.00032877,31]
[398294050,1765500660963,-151.0,0.00032877,31]
[398294051,1765500660972,-151.0,0.00032877,31]
[398294052,1765500660981,-178.45003,0.00032877,31]
[398294053,1765500660990,-151.0,0.00032877,31]
[398294054,1765500661000,-151.0,0.00032877,31]
[398294055,1765500661010,-178.45003,0.00032877,31]
[398294056,1765500661019,-151.0,0.00032877,31]
[398294057,1765500661029,-151.0,0.00032877,31]
[398294058,1765500661038,-178.45003,0.00032877,31]
[398294059,1765500661047,-151.0,0.00032877,31]
[398294060,1765500661057,-151.0,0.00032877,31]
[398294061,1765500661066,-178.45003,0.00032877,31]
[398294062,1765500661076,-151.0,0.00032877,31]
[398294063,1765500661085,-151.0,0.00032877,31]
[398294064,1765500661095,-178.45003,0.00032877,31]
[398294065,1765500661104,-151.0,0.00032877,31]
[398294066,1765500661113,-151.0,0.00032877,31]
[398294067,1765500661122,-190.552885,0.00032877,31]
[398294068,1765500661131,-178.45003,0.00032877,31]
[398294069,1765500661141,-175.508095,0.00032877,31]
[398294070,1765500661151,-178.45003,0.00032877,31]
[398294071,1765500661160,-178.45003,0.00032877,31]
[398294072,1765500661169,-178.45003,0.00032877,31]
[398294073,1765500661178,-178.45003,0.00032877,31]
[398294074,1765500661188,-178.45003,0.00032877,31]
[398294075,1765500661426,-153.596215,0.00032877,31]
[398294076,1765500661437,-151.0,0.00032877,31]
[398294077,1765500661447,-178.45003,0.00032877,31]
[398294078,1765500661457,-235.604668,0.00032877,31]
[398294079,1765500661467,-178.450035,0.00032877,31]
[398294080,1765500661477,-151.0,0.00032877,31]
[398294081,1765500661486,-175.060837,0.00032877,31]
[398294082,1765500661495,-151.0,0.00032877,31]
[398294083,1765500661504,-248.750649,0.00032877,31]
[398294084,1765500661514,-151.0,0.00032877,31]
[398294085,1765500661524,-248.750649,0.00032877,31]
[398294086,1765500661534,-248.750649,0.00032877,31]
[398294087,1765500661543,-248.750649,0.00032877,31]
[398294088,1765500661552,-248.750649,0.00032877,31]
[398294089,1765500661562,-248.750649,0.00032877,31]
[398294090,1765500661571,-248.750649,0.00032877,31]
[398294091,1765500661580,-248.750649,0.00032877,31]
[398294092,1765500661590,-248.750649,0.00032877,31]
[398294093,1765500661599,-248.750649,0.00032877,31]
[398294094,1765500661608,-248.750649,0.00032877,31]
[398294095,1765500661618,-248.750649,0.00032877,31]
[398294096,1765500661627,-328.572832,0.00032877,31]
[398294097,1765500661636,-151.0,0.00032877,31]
[398294098,1765500661645,-248.750649,0.00032877,31]
[398294099,1765500661654,-328.572832,0.00032877,31]
[398294100,1765500661663,-151.0,0.00032877,31]
[398294101,1765500661673,-248.750649,0.00032877,31]
[398294102,1765500661683,-328.572832,0.00032877,31]
[398294103,1765500661693,-480.8162296,0.00032877,120]
[398294104,1765500661702,-500.0,0.00032877,7]
[398294105,1765500661711,-242.17690314,0.00032877,7]
[398294106,1765500661721,-500.0,0.00032877,7]
[398294107,1765500661730,-500.0,0.00032877,7]
[398294108,1765500661739,-500.0,0.00032877,7]
[398294109,1765500661748,-500.0,0.00032877,7]
[398294110,1765500661757,-500.0,0.00032877,7]
[398294111,1765500661767,-500.0,0.00032877,3]
[398294112,1765500661776,-166.66,0.00032877,30]
[398294113,1765500661786,-627.0,0.00032887,3]
[398294114,1765500661795,-311.1,0.00032896,2]
[398294115,1765500661804,-151.0,0.00032896,2]
[398294116,1765500661814,-642.94,0.00032896,2]
[398294117,1765500661823,-2641.5,0.00032899,30]
[398294118,1765500661834,-150.0,0.00032899,20]
[398294119,1765500661843,-2961.93,0.000329,30]
[398294120,1765500661853,-813.65,0.000329,14]
[398294121,1765500661862,-728.66,0.000329,14]
[398294122,1765500661871,-1478.03,0.00032904,120]
[398294123,1765500661881,-7114.1817313,0.00032988,2]
[398294124,1765500661889,-178.84196588,0.00033,120]
[398294125,1765500661899,-160.0,0.00033,14]
[398294126,1765500661908,-500.0,0.00033014,3]
[398294127,1765500661918,-627.0,0.00033024,3]
[398294128,1765500661927,-275.46962916,0.00033031,20]
[398294129,1765500661936,-1478.03,0.00033041,120]
[398294130,1765500661946,-480.8162296,0.00033056,30]
[398294131,1765500661955,-9601.73,0.00033071,2]
[398294132,1765500661965,-500.0,0.00033151,3]
[398294133,1765500661975,-627.0,0.00033161,3]
[398294134,1765500661984,-340.11,0.00033165,2]
[398294135,1765500661994,-151.0,0.00033171,2]
[398294136,1765500662003,-151.0,0.00033171,2]
[398294137,1765500662013,-1606.0,0.00033171,2]
[398294138,1765500662022,-640.24385345,0.00033171,2]
[398294139,1765500662032,-418.67078279,0.00033171,2]
[398294140,1765500662041,-1478.03,0.00033217,120]
[398294141,1765500662051,-206.21,0.00033238,14]
[398294142,1765500662060,-150.0,0.00033288,4]
[398294143,1765500662070,-150.0,0.00033288,4]
[398294144,1765500662081,-150.0,0.00033288,4]
[398294145,1765500662090,-150.0,0.00033288,4]
[398294146,1765500662100,-150.0,0.00033288,4]
[398294147,1765500662110,-150.0,0.00033288,4]
[398294148,1765500662120,-150.0,0.00033288,4]
[398294149,1765500662130,-150.0,0.00033288,4]
[398294150,1765500662140,-150.00000001,0.00033288,4]
[398294151,1765500662150,-150.0,0.00033288,4]
[398294152,1765500662161,-150.0,0.00033288,4]
[398294153,1765500662171,-150.0,0.00033288,4]
[398294154,1765500662180,-596.55718838,0.00033288,3]
[398294155,1765500662190,-627.0,0.00033298,3]
[398294156,1765500662199,-627.0,0.00033435,3]
[398294157,1765500662208,-172.0,0.00033487,120]
[398294158,1765500662218,-193.0,0.00033487,120]
[398294159,1765500662228,-168.0,0.00033495,2]
[398294160,1765500662237,-150.0,0.00033581,2]
[398294161,1765500662246,-168.0,0.00033596,2]
[398294162,1765500662256,-172.0,0.00033643,120]
[398294163,1765500662265,-257.0,0.00033643,120]
[398294164,1765500662275,-1332.37,0.00033698,120]
[398294165,1765500662285,-150.0,0.00033699,7]
[398294166,1765500662295,-2431.52,0.00033699,2]
[398294167,1765500662304,-1105.42,0.00033699,2]
[398294168,1765500662318,-2961.93,0.000337,30]
[398294169,1765500662333,-813.65,0.000337,14]
[398294170,1765500662342,-728.66,0.000337,14]
[398294171,1765500662352,-259.37256731,0.00033719,2]
[398294172,1765500662361,-151.0,0.00033719,2]
[398294173,1765500662374,-663.93287602,0.00033719,2]
[398294174,1765500662387,-168.0,0.00033724,2]
[398294175,1765500662396,-1000.0,0.000338,40]
[398294176,1765500662406,-1500.0,0.000338,2]
[398294177,1765500662415,-150.0,0.00033816,7]
[398294178,1765500662425,-150.0,0.00033816,7]
[398294179,1765500662435,-278.46,0.00033851,2]
[398294180,1765500662445,-150.0,0.00033904,7]
[398294181,1765500662456,-275.46962916,0.00034014,21]
[398294182,1765500662465,-150.0,0.00034027,7]
[398294183,1765500662475,-150.0,0.0003411,7]
[398294184,1765500662484,-152.0,0.00034183,5]
[398294185,1765500662493,-2334.00908332,0.00034189,2]
[398294186,1765500662503,-150.0,0.00034212,7]
[398294187,1765500662512,-199.0,0.00034246,30]
[398294188,1765500662522,-666.72878,0.00034265,2]
[398294189,1765500662531,-599.60298507,0.00034266,2]
[398294190,1765500662541,-747.8093786,0.00034266,2]
[398294191,1765500662551,-151.0,0.00034267,2]
[398294192,1765500662560,-688.49839244,0.00034267,2]
[398294193,1765500662570,-333.01052974,0.00034294,2]
[398294194,1765500662579,-150.0,0.00034344,7]
[398294195,1765500662589,-150.0,0.00034344,7]
[398294196,1765500662598,-480.43,0.00034384,2]
[398294197,1765500662607,-480.43,0.00034384,2]
[398294198,1765500662616,-960.41,0.00034384,2]
[398294199,1765500662625,-168.0,0.00034388,2]
[398294200,1765500662634,-300.0,0.00034423,10]
[398294201,1765500662643,-666.0,0.00034423,30]
[398294202,1765500662653,-4127.391,0.00034424,38]
[398294203,1765500662663,-151.343,0.00034424,38]
[398294204,1765500662672,-175.11,0.00034487,2]
[398294205,1765500662681,-2961.93,0.000345,30]
[398294206,1765500662690,-813.65,0.000345,14]
[398294207,1765500662700,-728.66,0.000345,14]
[398294208,1765500662710,-168.0,0.00034508,2]
[398294209,1765500662720,-300.0,0.00034511,10]
[398294210,1765500662729,-300.0,0.00034511,10]
[398294211,1765500662738,-307.52656392,0.00034511,10]
[398294212,1765500662748,-611.0,0.00034512,2]
[398294213,1765500662757,-1626.749,0.00034512,2]
[398294214,1765500662767,-3446.0,0.00034512,2]
[398294215,1765500662776,-1323.0,0.00034512,2]
[398294216,1765500662786,-1259.0,0.00034512,2]
[398294217,1765500662795,-614.0,0.00034512,2]
[398294218,1765500662804,-253.0,0.00034512,2]
[398294219,1765500662814,-6514.0,0.00034512,2]
[398294220,1765500662823,-698.583,0.00034512,2]
[398294221,1765500662833,-605.048,0.00034512,2]
[398294222,1765500662842,-1332.37,0.0003452,120]
[398294223,1765500662852,-150.0,0.00034521,7]
[398294224,1765500662861,-150.0,0.00034521,7]
[398294225,1765500662871,-150.0,0.00034521,7]
[398294226,1765500662881,-1040.3,0.00034615,120]
[398294227,1765500662890,-168.0,0.0003468,2]
[398294228,1765500662899,-150.0,0.00034767,7]
[398294229,1765500662908,-168.0,0.00034769,2]
[398294230,1765500662918,-168.0,0.00034795,2]
[398294231,1765500662927,-1000.0,0.000348,50]
[398294232,1765500662937,-151.0,0.00034815,2]
[398294233,1765500662947,-713.97283296,0.00034815,2]
[398294234,1765500662956,-203.67,0.00034842,2]
[398294235,1765500662971,-1444.0,0.00034849,120]
[398294236,1765500662980,-168.0,0.00034861,2]
[398294237,1765500662990,-150.0,0.00034873,7]
[398294238,1765500662999,-150.0,0.00034873,7]
[398294239,1765500663009,-480.8162296,0.000349,120]
[398294240,1765500663019,-199.0,0.00034931,31]
[398294241,1765500663029,-150.0,0.00034932,7]
[398294242,1765500663039,-168.0,0.00034972,2]
[398294243,1765500663050,-278.46,0.00034992,2]
[398294244,1765500663060,-275.46962916,0.00034998,22]
[398294245,1765500663070,-168.0,0.00034998,2]
[398294246,1765500663081,-1105.36591098,0.00035,30]
[398294247,1765500663091,-2578.0153901,0.00035,90]
[398294248,1765500663102,-500.0,0.00035,120]
[398294249,1765500663112,-150.0,0.00035137,7]
[398294250,1765500663121,-150.0,0.00035137,7]
[398294251,1765500663131,-150.0,0.00035137,7]
[398294252,1765500663141,-172.0,0.00035161,120]
[398294253,1765500663151,-193.0,0.00035161,120]
[398294254,1765500663160,-300.0,0.0003521,10]
[398294255,1765500663170,-7114.1817313,0.00035211,2]
[398294256,1765500663180,-172.0,0.00035325,120]
[398294257,1765500663190,-257.0,0.00035325,120]
[398294258,1765500663200,-300.0,0.00035341,10]
[398294259,1765500663210,-300.0,0.00035341,10]
[398294260,1765500663219,-666.0,0.00035341,30]
[398294261,1765500663228,-300.0,0.00035341,10]
[398294262,1765500663237,-1332.37,0.00035342,120]
[398294263,1765500663247,-150.0,0.00035342,7]
[398294264,1765500663256,-300.0,0.00035342,2]
[398294265,1765500663266,-356.18,0.00035342,2]
[398294266,1765500663275,-1216.3,0.00035342,2]
[398294267,1765500663284,-463.81,0.00035342,2]
[398294268,1765500663293,-552.86,0.00035342,2]